Cogmind - Beta 10.2 @@@ ROGUE MODE // 2020.11.29 @ 02:28:02 Player: Leviel Result: Destroyed by as-85914 with Assembled Heavy Rifle Performance ------------- Evolutions (0) 0 Regions Visited (4) 800 Robots Destroyed (21) 105 Value Destroyed (289) 289 Prototype IDs (0) 0 Alien Tech Used (0) 0 Bonus (0) 0 TOTAL SCORE: 1194 Bonus ------- None Cogmind --------- Core Integrity 0/250 Matter 286/300 Energy 100/100 System Corruption 1% Temperature Cool (0) Movement Core (600) Ox11 Location -9/Mines Parts ------- > --- POWER (1) -------- (None) > --- PROPULSION (2) --- (None) > --- UTILITY (2) ------ High-capacity Storage Unit > --- WEAPON (2) ------- Light Cannon > --- INVENTORY (12) --- High-capacity Storage Unit High-capacity Storage Unit High-capacity Battery (400) High-capacity Matter Pod (200) High-capacity Matter Pod (200) High-capacity Matter Pod (200) Sensor Array Beam Cannon Assault Rifle Mining Laser Peak State ------------ > --- POWER ------------ Ion Engine > --- PROPULSION ------- Wheel Wheel > --- UTILITY ---------- Heat Sink High-capacity Storage Unit > --- WEAPON ----------- Mining Laser Mining Laser > --- INVENTORY -------- High-capacity Storage Unit High-capacity Storage Unit High-capacity Battery Large Matter Pod Sensor Array EM Pulse Gun Beam Cannon Assault Rifle Light Cannon Mining Laser [Rating: 8] Favorites ----------- Power Ion Engine Engine Ion Engine Propulsion Wheel Treads Light Treads Leg Aluminum Leg Wheel Wheel Utility Heat Sink Device Heat Sink Storage High-capacity Storage Unit Weapon Mining Laser Energy Gun EM Pulse Gun Ballistic Gun Assault Rifle Ballistic Cannon Light Cannon Special Weapon Mining Laser Build | -11 -10 -10 -10 -9 ------- Run | Scr Mat Min Exi Min Slots Evolved . | . . . . . Power . | . . . . . Propulsion . | . . . . . Utility . | . . . . . Weapon . | . . . . . Parts Attached 23 | 7 14 . . 2 Power 2 | 1 1 . . . Engine 2 | 1 1 . . . Core . | . . . . . Reactor . | . . . . . Propulsion 5 | 3 2 . . . Treads 2 | 2 . . . . Leg 1 | 1 . . . . Wheel 2 | . 2 . . . Hover . | . . . . . Flight . | . . . . . Utility 4 | 1 3 . . . Device 2 | . 2 . . . Storage 2 | 1 1 . . . Processor . | . . . . . Hackware . | . . . . . Protection . | . . . . . Artifact . | . . . . . Weapon 12 | 2 8 . . 2 Energy Gun 2 | . 1 . . 1 Energy Cannon . | . . . . . Ballistic Gun 3 | 2 1 . . . Ballistic Cannon 3 | . 2 . . 1 Launcher . | . . . . . Special Weapon 4 | . 4 . . . Impact Weapon . | . . . . . Slashing Weapon . | . . . . . Piercing Weapon . | . . . . . Special Melee Weapon . | . . . . . Unidentified Prototypes . | . . . . . Parts Lost 7 | . . . . 7 Power 1 | . . . . 1 Propulsion 2 | . . . . 2 Utility 1 | . . . . 1 Weapon 3 | . . . . 3 Highest Loss Streak 7 | . . . . 7 Average Slot Usage (%) 97 | . 96 100 100 74 Engine 13 | . 14 14 14 8 Treads 10 | . 17 . . . Wheel 17 | . 10 28 28 19 Device 12 | . 11 14 14 11 Storage 14 | . 14 14 14 14 Ballistic Gun 4 | . 8 . . . Ballistic Cannon 4 | . 8 . . 2 Special Weapon 18 | . 11 28 28 16 Naked Turns . | . . . . . Heaviest Build 40 | 10 40 40 40 40 Greatest Support 40 | 20 40 20 20 20 Greatest Overweight (x) 12 | 2 1 1 1 12 Average Overweight (x) . | . . 1 1 1 Largest Inventory Capacity 12 | 6 12 12 12 12 Average Capacity 9 | 5 7 12 12 12 Most Carried 12 | 4 7 7 12 12 Average Carried 6 | 2 5 7 9 11 Final Capacity 12 | 6 12 12 12 12 Final Carried 12 | 4 7 7 12 10 Class Distribution -------------------- 100% | Mutant Dominant Class ---------------- Mutant | -10/Materials Mutant | -10/Mines Mutant | -10/Exiles Mutant | -9/Mines Resources | -11 -10 -10 -10 -9 ----------- Run | Scr Mat Min Exi Min Matter Collected 1229 | 175 642 . 412 . Remotely . | . . . . . Salvage Created 460 | . 460 . . . Parts 37 | . 36 1 . . Haulers Intercepted . | . . . . . Recyclers Shooed . | . . . . . Parts Field Recycled . | . . . . . Retrieved Matter . | . . . . . Parts Self-Destructed . | . . . . . Prevented . | . . . . . Kills | -11 -10 -10 -10 -9 ------- Run | Scr Mat Min Exi Min Combat Hostiles Destroyed 5 | . 5 . . . Guns 2 | . 2 . . . Cannons 3 | . 3 . . . Classes Destroyed 6 | . 6 . . . Worker 8 | . 6 2 . . Builder 5 | . 5 . . . Tunneler 1 | . 1 . . . Recycler 1 | . 1 . . . Mechanic 1 | . 1 . . . Grunt 5 | . 5 . . . Best Kill Streak 3 | . 3 2 . . Combat Bots Only 3 | . 3 . . . Max Kills in Single Turn 1 | . 1 1 . . Gunslinging . | . . . . . Exploded . | . . . . . Melee . | . . . . . Uniques/NPCs Destroyed . | . . . . . Combat | -11 -10 -10 -10 -9 -------- Run | Scr Mat Min Exi Min Damage Taken 874 | . 316 . . 558 Core 258 | . 43 . . 215 Absorbed by Shields . | . . . . . Core Remaining (%) 100 | 100 . . . . Volleys Fired 76 | . 71 3 . 2 Largest 2 | . 2 2 . 2 Hottest 200 | . 200 200 . 200 Shots Fired 137 | . 127 6 . 4 Gun 47 | . 46 . . 1 Cannon 61 | . 60 . . 1 Launcher . | . . . . . Special 29 | . 21 6 . 2 Kinetic 107 | . 106 . . 1 Thermal 29 | . 21 6 . 2 Explosive . | . . . . . Electromagnetic 1 | . . . . 1 Robot Hit Streak 5 | . 5 3 . 1 Robot Miss Streak 4 | . 4 1 . 3 Penetration Max . | . . . . . Secondary Targets . | . . . . . Shots Hit Robots 40 | . 35 4 . 1 Core Hits 22 | . 20 2 . . Critical Hits . | . . . . . Critical Kills . | . . . . . Critical Parts Destroyed . | . . . . . Melee Attacks . | . . . . . Impact . | . . . . . Slashing . | . . . . . Piercing . | . . . . . Sneak Attacks . | . . . . . Combat Hostiles . | . . . . . Follow-up Attacks . | . . . . . Damage Inflicted 797 | . 701 96 . . Guns 275 | . 275 . . . Cannons 192 | . 192 . . . Explosions 114 | . 114 . . . Melee . | . . . . . Ramming . | . . . . . Kinetic 467 | . 467 . . . Thermal 216 | . 120 96 . . Explosive 114 | . 114 . . . Electromagnetic . | . . . . . Impact . | . . . . . Slashing . | . . . . . Piercing . | . . . . . Highest Corruption 1 | . 1 1 1 1 Average Corruption 1 | . 1 1 1 1 Corruption Purged . | . . . . . Effects 7 | . 6 . . 1 Message Errors 2 | . 2 . . . Energy Discharges 2 | . 1 . . 1 Data Loss (minor) 1 | . 1 . . . Targeting Errors 2 | . 2 . . . Overload Shots . | . . . . . Overflow Damage 63 | . 63 . . . Projectiles 4 | . 4 . . . Explosions 59 | . 59 . . . Melee . | . . . . . Knockbacks 1 | . 1 . . . Impact . | . . . . . Kinetic 1 | . 1 . . . Secondary . | . . . . . Self-Inflicted Damage 72 | . 72 . . . Shots 2 | . 2 . . . Rammed . | . . . . . Targets Rammed . | . . . . . Kicked . | . . . . . Crushed . | . . . . . Highest Temperature 20 | . 20 . . 20 Average Temperature 10 | . 10 . . 20 Received Heat Transfer 190 | . 150 . . 40 Siege Activations . | . . . . . Robots Corrupted . | . . . . . Combat Hostiles . | . . . . . Parts Fried . | . . . . . Impact Corruptions . | . . . . . Robots Melted . | . . . . . Combat Hostiles . | . . . . . Parts Melted 1 | . . 1 . . Heat Transferred 450 | . 250 200 . . Parts Sabotaged . | . . . . . Parts Stolen . | . . . . . Parts Stripped . | . . . . . Power Chain Reactions . | . . . . . Missiles Intercepted . | . . . . . Alert | -11 -10 -10 -10 -9 ------- Run | Scr Mat Min Exi Min Peak Influence 205 | . 205 10 . . Initial . | . . . . . Average 43 | . 54 2 . . Maximum Alert Level 1 | . 1 . . . Low Security (%) 96 | 100 96 100 . 100 Level 1 3 | . 3 . . . Level 2 . | . . . . . Level 3 . | . . . . . Level 4 . | . . . . . Level 5 . | . . . . . High Security . | . . . . . Max Security . | . . . . . Squads Dispatched 3 | . 3 . . . Investigation 2 | . 2 . . . Extermination . | . . . . . Reinforcement 1 | . 1 . . . Assault . | . . . . . Garrison . | . . . . . Intercept . | . . . . . Construction Impeded . | . . . . . Haulers Reinforced . | . . . . . Stealth | -11 -10 -10 -10 -9 --------- Run | Scr Mat Min Exi Min Distress Signals 2 | . 2 . . . Communications Jammed . | . . . . . Distress Signals . | . . . . . Times Spotted 18 | . 10 . . 8 Peak Tracking Total 8 | . 2 . . 8 Tactical Retreats 2 | . 2 . . . Traps | -11 -10 -10 -10 -9 ------- Run | Scr Mat Min Exi Min Traps Triggered 1 | . 1 . . . Indirectly . | . . . . . Trap Hack Attempts . | . . . . . Triggered . | . . . . . Disarmed . | . . . . . Reprogrammed . | . . . . . Reused . | . . . . . Traps Extracted . | . . . . . Installed . | . . . . . Triggered . | . . . . . Machines | -11 -10 -10 -10 -9 ---------- Run | Scr Mat Min Exi Min Machines Disabled 6 | . 6 . . . Max in Single Turn 2 | . 2 . . . Machines Sabotaged . | . . . . . Garrisons Compromised . | . . . . . Overloaded Fab Kills . | . . . . . Fab Network Shutdowns . | . . . . . Hacking | -11 -10 -10 -10 -9 --------- Run | Scr Mat Min Exi Min Machines Accessed 8 | . 4 . 4 . Terminals 2 | . 2 . . . Fabricators . | . . . . . Repair Stations 1 | . 1 . . . Recycling Units 1 | . 1 . . . Scanalyzers . | . . . . . Garrison Access . | . . . . . Total Hacks 62 | . 13 . 49 . Successful 57 | . 8 . 49 . Failed 5 | . 5 . . . Catastrophic . | . . . . . Database Lockouts . | . . . . . Manual 7 | . . . 7 . Terminals 8 | . 8 . . . Fabricators . | . . . . . Repair Stations 2 | . 2 . . . Recycling Units 3 | . 3 . . . Scanalyzers . | . . . . . Garrison Access . | . . . . . Terminal Hacks 52 | . 3 . 49 . Record 51 | . 2 . 49 . Emergency Access Points 1 | . 1 . . . Fabricator Hacks . | . . . . . Repair Station Hacks 2 | . 2 . . . Scan Component 1 | . 1 . . . Repair 1 | . 1 . . . Recycling Unit Hacks 3 | . 3 . . . Process 1 | . 1 . . . Report Inventory 1 | . 1 . . . Retrieve Matter 1 | . 1 . . . Scanalyzer . | . . . . . Garrison Access Hacks . | . . . . . Unauthorized Hacks . | . . . . . Terminals . | . . . . . Fabricators . | . . . . . Repair Stations . | . . . . . Recycling Units . | . . . . . Scanalyzers . | . . . . . Garrison Access . | . . . . . Data Cores Recovered . | . . . . . Used . | . . . . . Hacking Detections 2 | . 2 . . . Full Trace Events 1 | . 1 . . . Feedback Events . | . . . . . Feedback Blocked . | . . . . . Robot Schematics Acquired . | . . . . . Robots Built . | . . . . . Matter . | . . . . . Time . | . . . . . Total Robot Build Rating . | . . . . . Part Schematics Acquired . | . . . . . Parts Built . | . . . . . Matter . | . . . . . Time . | . . . . . Total Part Build Rating . | . . . . . Parts Repaired 1 | . 1 . . . Time 26 | . 26 . . . Parts Recycled . | . . . . . Recycled Matter 18 | . 18 . . . Retrieved Matter 18 | . 18 . . . Retrieved Components . | . . . . . Parts Scanalyzed . | . . . . . Part Schematics Acquired . | . . . . . Parts Damaged . | . . . . . Bothacking | -11 -10 -10 -10 -9 ------------ Run | Scr Mat Min Exi Min Used RIF Installer . | . . . . . Robots Hacked . | . . . . . Non-combat . | . . . . . Combat . | . . . . . Robot Hacks Applied . | . . . . . Relay Couplers Released . | . . . . . Robots Rewired . | . . . . . Allies Hacked . | . . . . . Hacks Repelled . | . . . . . Allies | -11 -10 -10 -10 -9 -------- Run | Scr Mat Min Exi Min Total Allies . | . . . . . Largest Group . | . . . . . Highest-Rated Group . | . . . . . Highest-Rated Ally . | . . . . . Total Orders . | . . . . . Ally Attacks . | . . . . . Total Damage . | . . . . . Kills . | . . . . . Allies Corrupted . | . . . . . Allies Melted . | . . . . . Intel | -11 -10 -10 -10 -9 ------- Run | Scr Mat Min Exi Min Robot Analysis Total . | . . . . . Derelict Logs Recovered 1 | . . 1 . . Drone Launches . | . . . . . Drone Recoveries . | . . . . . Exploration | -11 -10 -10 -10 -9 ------------- Run | Scr Mat Min Exi Min Turns Passed 2311 | 129 1240 160 734 48 Spaces Moved 1889 | 79 811 155 810 34 Core 12 | 11 . . . 1 Treads 427 | 61 366 . . . Legs 7 | 7 . . . . Wheels 1443 | . 445 155 810 33 Hover . | . . . . . Flight . | . . . . . Fastest Speed 50 | 50 80 90 90 90 Average Speed 105 | 143 121 90 90 107 Slowest Speed 650 | 160 160 90 90 650 Overloaded Moves . | . . . . . Propulsion Burnouts . | . . . . . Robots Hopped . | . . . . . Cave-ins Triggered . | . . . . . Exploration Rate (%) 44 | 5 78 36 91 13 Regions Visited 4 Branch Regions 3 Pre-discovered Areas 2 | . . 1 1 . Known Exits Taken . | . . . . . Unknown Exits Taken 4 | 1 1 1 1 . Scrap Searched 1 | . . . . 1 Spaces Dug . | . . . . . Terrain Destroyed 51 | . 50 . . 1 Melee . | . . . . . Projectile 2 | . 1 . . 1 AOE 49 | . 49 . . . Terrain Rammed . | . . . . . Walls Destroyed . | . . . . . Machines Disabled . | . . . . . Actions | -11 -10 -10 -10 -9 --------- Run | Scr Mat Min Exi Min Total 2016 | 92 913 157 816 38 Wait . | . . . . . Move 1885 | 78 810 154 809 34 Hop . | . . . . . Pick Up 20 | 5 9 . 6 . Fast Attach 9 | 7 2 . . . Attach 2 | . . . . 2 Detach . | . . . . . Swap 12 | . 12 . . . Drop 12 | 2 9 . 1 . Fire 76 | . 71 3 . 2 Melee . | . . . . . Ram . | . . . . . Kick . | . . . . . Crush . | . . . . . Escape Stasis . | . . . . . Rewire . | . . . . . Trap . | . . . . . Miscellaneous . | . . . . . Route ------- -11/Scrapyard -10/Materials (discovered 4 exits: [*Mat x2] / [*Min x2]) -10/Mines (discovered 2 exits: [*Mat] / *Exi) -10/Exiles (discovered 2 exits: [*Min x2]) -9/Mines History --------- Turn | Location | Event 7 | -11/Scrapyard | Discovered new exit (range 14) 130 | -11/Scrapyard | Entered Materials 305 | -10/Materials | Build established: Mutant 492 | -10/Materials | Discovered new exit (range 16) 671 | -10/Materials | Discovered new exit (range 7) 986 | -10/Materials | Discovered new exit (range 13) 1000 | -10/Materials | Repaired Mining Laser? 1117 | -10/Materials | Discovered new exit (range 15) 1370 | -10/Materials | Entered Mines 1371 | -10/Mines | Learned location of Storage (-8) 1483 | -10/Mines | Discovered new exit (range 13) 1494 | -10/Mines | Learned 4 Materials zone layouts 1524 | -10/Mines | Deemed a non-threat by the Exiles lab entrance 1525 | -10/Mines | Discovered new exit (range 5) 1530 | -10/Mines | Entered Exiles 1552 | -10/Exiles | Discovered new exit (range 15) 1570 | -10/Exiles | Met 8R-AWN 1594 | -10/Exiles | Met EX-HEX 1641 | -10/Exiles | Met EX-DEC 1682 | -10/Exiles | Visited The Gauntlet 1825 | -10/Exiles | Learned location of Zion (-7) 1887 | -10/Exiles | Discovered new exit (range 14) 2000 | -10/Exiles | Met EX-BIN 2264 | -10/Exiles | Entered Mines 2277 | -9/Mines | Assembled infested the area 2305 | -9/Mines | Core integrity fell below 50% 2311 | -9/Mines | Core integrity fell below 20% 2312 | -9/Mines | Destroyed by as-85914 with Assembled Heavy Rifle Last Messages --------------- LOCATION=UNKNOWN GOAL=ESCAPE K-01 Serf collects debris. Searching scrap... Found 25 Matter. Found Aluminum Leg. Found 37 Matter. ALERT: Infestation in the mines, dispatching Demolisher response squad. System corrupted: Energy discharge (-92). Mining Laser destroyed. K-01 Serf suffers critical hit. Mining Laser destroyed. Wheel destroyed. K-01 Serf destroyed. Ion Engine destroyed. Heat Sink destroyed. K-01 Serf collects debris. Wheel destroyed. EM Pulse Gun destroyed. K-01 Serf collects debris. Map ----- +----------------------------------------------------+ | ????????????????????????????????????? | | ????????????????????????????????????? | | ????????????????????????????????????? | | ????????????????????????????????????? | | ????????????????????????????????????? | | ????????????????????????????????????? | | ????????????????????????????????????? | | ????????????????????????????????????? | | ????????????##??????????????????????? | | ???????????# ##?# ?????????????????? | | ??????????# ## ?????????????????? | | ?????????## ?????????????????? | | ????????## ??????????????????? | | ???????## ??????????????????? | | ???????# ???????????????????? | | ??????## ???????????????????? | | ??????# a ????????????????????? | | ??????# ????????????????????? | | ???????# ?????????????????????? | | ????????# ?????????????????????? | | ?????????# ??????????????????????? | | ??????????#aa;??????????????????????? | | ??????????#aa#??????????????????????? | | ??????????# a#??????????????????????? | | ??????????#aa#??????????????????????? | | ??????????# @#??????????????????????? | | ?????????## #??????????????????????? | | ?????????# #??????????????????????? | | ?????????# k #??????????????????????? | | ?????????# ##??????????????????????? | | ?????????# #???????????????????????? | | ?????????# #???????????????????????? | | ?????????#% #???????????????????????? | | ?????????#%=#???????????????????????? | | ?????????# #???????????????????????? | | ?????????# #???????????????????????? | | ?????????# #???????????????????????? | | ?????????# #???????????????????????? | | ?????????# #???????????????????????? | | ???####### #####???????????????????? | | ???# #???????????????????? | | ???# #???????????????????? | | ???# #???????????????????? | | ???# #???????????????????? | | ???# """ """ #???????????????????? | | ???# """ """ #???????????????????? | | ???# """ """ #???????????????????? | | ???# #???????????????????? | | ???##############???????????????????? | | ????????????????????????????????????? | +----------------------------------------------------+ Best States ------------- Heat Dissipation 35 Energy Generation 10 Energy Capacity 250 Matter Stores 300 Matter Capacity 300 Sight Range 16 Terrain Scan Density 10 Evasion (%) 44 Recoil Reduction 2 Item Schematics ----------------- None Robot Schematics ------------------ None Fabricated ------------ Nothing Alien Tech Used ----------------- None Achievements -------------- Librarian Tourist Challenges ------------ None Game ------ Seed ControlRocketGravjet Manual? 0 Play Time 00:26:43 Cumulative 1.3 hours Start 2020.11.29 @ 01:59:35 End 2020.11.29 @ 02:28:02 Sessions 1 Manual Loads 0 Difficulty Rogue Special Mode None Game No. 4 Rogue 4 Adventurer 0 Explorer 0 Win Type - Total 0 Types 0/0/0/0/0/0/0/0/0 Lore% 10 Gallery% 3 Achievement% 3 Wizard Run 0 Options --------- ASCII 0 Keyboard 0 Movement Arrows Keybinds 0 Fullscreen 1 Font 18/SmallcapsGlow Map View 76x50 Tactical HUD 0 Map Filters NONE Filters NONE Steam 1 RUN: 1b0deedc-3df7-46ac-8412-303f8322399e